Workbook

Sheet English system
B1: A Bouncing Ball
B3: This graphing utility produces the graph
B4: of the height H of a bouncing ball
B5: that is dropped from some
C6: initial height H0
B7: using the English system of units with feet.
A9: What is the initial height H0 (in feet, 10 - 100)?
C10: =E10 -> 33 | E10: 33
A13: What percentage of the velocity is lost on each bounce (0 - 20%)?
C14: =E14 -> 7 | D14: % | E14: 7
J16: Now trace a point along the path of the bouncing ball
L17: 119
A18: Click each item below for suggestions and investigations | K18: t = | L18: =L17*dt -> 5.95 | M18: seconds
B19: Item 1 | K19: y = | L19: =LOOKUP(L$18,Sheet2!C3:C603,Sheet2!D3:D603) -> 18.92 | M19: feet
B20: Item 2 | K20: v = | L20: =LOOKUP(L$18,Sheet2!C3:C603,Sheet2!F3:F603) -> -19.22 | M20: ft/sec
B21: Item 3
B22: Item 4
B23: Item 5
B24: Item 6
B25: Item 7
A28: To access/download all the DIGMath Apps for Calculus
A29: Click this link: | C29: DIGMath for Calculus
A31: Created by: Sheldon P. Gordon
A32: Farmingdale State College
A33: Development of this module was supported by the
A34: NSF's Division of Undergraduate Education
A35: under grants DUE-0310123 and DUE-0442160.

Sheet Metric system
B1: A Bouncing Ball
B3: This graphing utility produces the graph
B4: of the height H of a bouncing ball
B5: that is dropped from some
C6: initial height H0
B7: using the metric system of units with meters.
A9: What is the initial height H0 (in meters, 3 - 30)?
C10: =E10 -> 20 | E10: 20
A13: What percentage of the velocity is lost on each bounce (0 - 20%)?
C14: =E14 -> 10 | D14: % | E14: 10
J16: Now trace a point along the path of the bouncing ball
K17: 127 | L17: 115
A18: Click each item below for suggestions and investigations | K18: t = | L18: =K17*dtt -> 5.29 | M18: seconds
B19: Item 1 | K19: y = | L19: =LOOKUP(L$18,Sheet2!J3:J603,Sheet2!K3:K603) -> 7.48 | M19: meters
B20: Item 2 | K20: v = | L20: =LOOKUP(L$18,Sheet2!J3:J603,Sheet2!M3:M603) -> -13.83 | M20: m/sec
B21: Item 3
B22: Item 4
B23: Item 5
B24: Item 6
B25: Item 7
A29: To access/download all the DIGMath Apps for Calculus
A30: Click this link: | C30: DIGMath for Calculus
A32: Created by: Sheldon P. Gordon
A33: Farmingdale State College
A34: Development of this module was supported by the
A35: NSF's Division of Undergraduate Education
A36: under grants DUE-0310123 and DUE-0442160.

Sheet Sheet2
A1: English system | C1: t | D1: y | F1: v | H1: Metric system | J1: t | K1: y | M1: v | O1: English System | W1: Metric System
C2: First bounce | J2: First bounce | O2: t0 | P2: tfinal | Q2: t1 = | R2: =s/4 -> 1.436140662 | S2: v1 = | T2: =df*s*8 -> 42.73954609 | U2: 0 | W2: t0 | X2: tfinal | Y2: t1 = | Z2: =SQRT(2*H00/gg) -> 2.020305089 | AA2: v1 = | AB2: =dff*gg*Z2 -> 17.81909089 | AC2: 0
C3: =O4 -> 0 | D3: =h0 -> 33 | E3: 0.5 | F3: 0 | J3: =W3 -> 0 | K3: =H00 -> 20 | L3: 0.5 | M3: 0 | O3: 0 | P3: 0 | Q3: t2 = | R3: =R2+df*s/2 -> 4.107362292 | S3: v2 = | T3: =T2*df -> 39.74777786 | U3: 0 | W3: 0 | X3: 0 | Y3: t2 = | Z3: =Z2+2*AB2/gg -> 5.656854249 | AA3: v2 = | AB3: =dff*AB2 -> 16.0371818 | AC3: 0
A4: sq rt(H0) = | B4: =SQRT(h0) -> 5.744562647 | C4: =C3+Sheet2!B$12 -> 0.05 | D4: =IF(C4<=R$2,h0-16*C4^2,IF(AND(C4>R$2,C4<=R$3),T$2*(C4-R$2)-16*(C4-R$2)^2,IF(AND(C4>R$3,C4<=R$4),T$3*(C4-R$3)-16*(C4-R$3)^2,IF(AND(C4>R$4,C4<=R$5),T$4*(C4-R$4)-16*(C4-R$4)^2,IF(AND(C4>R$5,C4<=R$6),T$5*(C4-R$5)-16*(C4-R$5)^2,IF(AND(C4>R$6,C4<=R$7),T$6*(C4-R$6)-16*(C4-R$6)^2,IF(AND(C4>R$7,C4<=R$8),T$7*(C4-R$7)-16*(C4-R$7)^2,0))))))) -> 32.96 | E4: 0.5 | F4: =IF(C4<=R$2,-32*C4,IF(AND(C4>R$2,C4<=R$3),T$2-32*(C4-R$2),IF(AND(C4>R$3,C4<=R$4),T$3-32*(C4-R$3),IF(AND(C4>R$4,C4<=R$5),T$4-32*(C4-R$4),IF(AND(C4>R$5,C4<=R$6),T$5-32*(C4-R$5),IF(AND(C4>R$6,C4<=R$7),T$6-32*(C4-R$6),IF(AND(C4>R$7,C4<=R$8),T$7-32*(C4-R$7),0))))))) -> -1.6 | H4: sq rt(H00) = | I4: =SQRT(2*H00/9.6) -> 2.041241452 | J4: =J3+Sheet2!I$12 -> 0.04166666667 | K4: =IF(J4<=Z$2,H00-4.8*J4^2,IF(AND(J4>Z$2,J4<=Z$3),AB$2*(J4-Z$2)-4.8*(J4-Z$2)^2,IF(AND(J4>Z$3,J4<=Z$4),AB$3*(J4-Z$3)-4.8*(J4-Z$3)^2,IF(AND(J4>Z$4,J4<=Z$5),AB$4*(J4-Z$4)-4.8*(J4-Z$4)^2,IF(AND(J4>Z$5,J4<=Z$6),AB$5*(J4-Z$5)-4.8*(J4-Z$5)^2,IF(AND(J4>Z$6,J4<=Z$7),AB$6*(J4-Z$6)-4.8*(J4-Z$6)^2,IF(AND(J4>Z$7,J4<=Z$8),AB$7*(J4-Z$7)-4.8*(J4-Z$7)^2,0))))))) -> 19.99 | L4: 0.5 | M4: =IF(J4<=Z$2,-gg*J4,IF(AND(J4>Z$2,J4<=Z$3),AB$2-gg*(J4-Z$2),IF(AND(J4>Z$3,J4<=Z$4),AB$3-gg*(J4-Z$3),IF(AND(J4>Z$4,J4<=Z$5),AB$4-gg*(J4-Z$4),IF(AND(J4>Z$5,J4<=Z$6),AB$5-gg*(J4-Z$5),IF(AND(J4>Z$6,J4<=Z$7),AB$6-gg*(J4-Z$6),IF(AND(J4>Z$7,J4<=Z$8),AB$7-gg*(J4-Z$7),0))))))) -> -0.4083333333 | O4: 0 | P4: 0 | Q4: t3 = | R4: =R3+df^2*s/2 -> 6.591598409 | S4: v3 = | T4: 36.96543341 | U4: 0 | W4: 0 | X4: 0 | Y4: t3 = | Z4: 8.929748494 | AA4: v3 = | AB4: 14.43346362 | AC4: 0
A5: df = | B5: =1-frac/100 -> 0.93 | C5: =C4+Sheet2!B$12 -> 0.1 | D5: 32.84 | E5: 0.5 | F5: -3.2 | H5: dff = | I5: =1-frac0/100 -> 0.9 | J5: =J4+Sheet2!I$12 -> 0.08333333333 | K5: 19.97 | L5: 0.5 | M5: -0.8166666667 | P5: 0 | Q5: t4 = | R5: =R4+df^3*s/2 -> 8.901937997 | S5: v4 = | T5: 34.37785307 | U5: 0 | X5: 0 | Y5: t4 = | Z5: 11.87535331 | AA5: v4 = | AB5: 12.99011726 | AC5: 0
C6: =C5+Sheet2!B$12 -> 0.15 | D6: 32.64 | E6: 0.5 | F6: -4.8 | H6: g = | I6: 9.8 | J6: =J5+Sheet2!I$12 -> 0.125 | K6: 19.93 | L6: 0.5 | M6: -1.225 | Q6: t5 = | R6: =R5+df^4*s/2 -> 11.05055381 | S6: v5 = | T6: 31.97140336 | U6: 0 | Y6: t5 = | Z6: 14.52639765 | AA6: v5 = | AB6: 11.69110553 | AC6: 0
C7: =C6+Sheet2!B$12 -> 0.2 | D7: 32.36 | E7: 0.5 | F7: -6.4 | J7: =J6+Sheet2!I$12 -> 0.1666666667 | K7: 19.87 | L7: 0.5 | M7: -1.633333333 | Q7: t6 = | R7: =R6+df^5*s/2 -> 13.04876652 | S7: v6 = | T7: 29.73340512 | U7: 0 | Y7: t6 = | Z7: 16.91233756 | AA7: v6 = | AB7: 10.52199498 | AC7: 0
C8: =C7+Sheet2!B$12 -> 0.25 | D8: 32.00 | E8: 0.5 | F8: -8 | J8: =J7+Sheet2!I$12 -> 0.2083333333 | K8: 19.79 | L8: 0.5 | M8: -2.041666667 | Q8: t7 = | R8: =R7+df^6*s/2 -> 14.90710434 | S8: v7 = | T8: 27.65206677 | U8: 0 | Y8: t7 = | Z8: 19.05968347 | AA8: v7 = | AB8: 9.469795479 | AC8: 0
C9: =C8+Sheet2!B$12 -> 0.3 | D9: 31.56 | E9: 0.5 | F9: -9.6 | J9: =J8+Sheet2!I$12 -> 0.25 | K9: 19.70 | L9: 0.5 | M9: -2.45 | R9: 30 | U9: 0 | Z9: 25 | AC9: 0
C10: =C9+Sheet2!B$12 -> 0.35 | D10: 31.04 | E10: 0.5 | F10: -11.2 | J10: =J9+Sheet2!I$12 -> 0.2916666667 | K10: 19.59 | L10: 0.5 | M10: -2.858333333
C11: =C10+Sheet2!B$12 -> 0.4 | D11: 30.44 | E11: 0.5 | F11: -12.8 | J11: =J10+Sheet2!I$12 -> 0.3333333333 | K11: 19.47 | L11: 0.5 | M11: -3.266666667
A12: delta t = | B12: 0.05 | C12: =C11+Sheet2!B$12 -> 0.45 | D12: 29.76 | E12: 0.5 | F12: -14.4 | H12: delta t = | I12: =25/600 -> 0.04166666667 | J12: =J11+Sheet2!I$12 -> 0.375 | K12: 19.33 | L12: 0.5 | M12: -3.675
C13: =C12+Sheet2!B$12 -> 0.5 | D13: 29.00 | E13: 0.5 | F13: -16 | J13: =J12+Sheet2!I$12 -> 0.4166666667 | K13: 19.17 | L13: 0.5 | M13: -4.083333333
C14: =C13+Sheet2!B$12 -> 0.55 | D14: 28.16 | E14: 0.5 | F14: -17.6 | J14: =J13+Sheet2!I$12 -> 0.4583333333 | K14: 18.99 | L14: 0.5 | M14: -4.491666667
C15: =C14+Sheet2!B$12 -> 0.6 | D15: 27.24 | E15: 0.5 | F15: -19.2 | J15: =J14+Sheet2!I$12 -> 0.5 | K15: 18.80 | L15: 0.5 | M15: -4.9
B16: t1 | C16: =C15+Sheet2!B$12 -> 0.65 | D16: 26.24 | E16: 0.5 | F16: -20.8 | I16: t1 | J16: =J15+Sheet2!I$12 -> 0.5416666667 | K16: 18.59 | L16: 0.5 | M16: -5.308333333
C17: =C16+Sheet2!B$12 -> 0.7 | D17: 25.16 | E17: 0.5 | F17: -22.4 | J17: =J16+Sheet2!I$12 -> 0.5833333333 | K17: 18.37 | L17: 0.5 | M17: -5.716666667
C18: =C17+Sheet2!B$12 -> 0.75 | D18: 24.00 | E18: 0.5 | F18: -24 | J18: =J17+Sheet2!I$12 -> 0.625 | K18: 18.13 | L18: 0.5 | M18: -6.125
C19: =C18+Sheet2!B$12 -> 0.8 | D19: 22.76 | E19: 0.5 | F19: -25.6 | J19: =J18+Sheet2!I$12 -> 0.6666666667 | K19: 17.87 | L19: 0.5 | M19: -6.533333333
C20: =C19+Sheet2!B$12 -> 0.85 | D20: 21.44 | E20: 0.5 | F20: -27.2 | J20: =J19+Sheet2!I$12 -> 0.7083333333 | K20: 17.59 | L20: 0.5 | M20: -6.941666667
C21: =C20+Sheet2!B$12 -> 0.9 | D21: 20.04 | E21: 0.5 | F21: -28.8 | J21: =J20+Sheet2!I$12 -> 0.75 | K21: 17.30 | L21: 0.5 | M21: -7.35
C22: =C21+Sheet2!B$12 -> 0.95 | D22: 18.56 | E22: 0.5 | F22: -30.4 | J22: =J21+Sheet2!I$12 -> 0.7916666667 | K22: 16.99 | L22: 0.5 | M22: -7.758333333
C23: =C22+Sheet2!B$12 -> 1 | D23: 17.00 | E23: 0.5 | F23: -32 | J23: =J22+Sheet2!I$12 -> 0.8333333333 | K23: 16.67 | L23: 0.5 | M23: -8.166666667
C24: =C23+Sheet2!B$12 -> 1.05 | D24: 15.36 | E24: 0.5 | F24: -33.6 | J24: =J23+Sheet2!I$12 -> 0.875 | K24: 16.33 | L24: 0.5 | M24: -8.575
C25: =C24+Sheet2!B$12 -> 1.1 | D25: 13.64 | E25: 0.5 | F25: -35.2 | J25: =J24+Sheet2!I$12 -> 0.9166666667 | K25: 15.97 | L25: 0.5 | M25: -8.983333333
C26: =C25+Sheet2!B$12 -> 1.15 | D26: 11.84 | E26: 0.5 | F26: -36.8 | J26: =J25+Sheet2!I$12 -> 0.9583333333 | K26: 15.59 | L26: 0.5 | M26: -9.391666667
C27: =C26+Sheet2!B$12 -> 1.2 | D27: 9.96 | E27: 0.5 | F27: -38.4 | J27: =J26+Sheet2!I$12 -> 1 | K27: 15.20 | L27: 0.5 | M27: -9.8
C28: =C27+Sheet2!B$12 -> 1.25 | D28: 8.00 | E28: 0.5 | F28: -40 | J28: =J27+Sheet2!I$12 -> 1.041666667 | K28: 14.79 | L28: 0.5 | M28: -10.20833333
C29: =C28+Sheet2!B$12 -> 1.3 | D29: 5.96 | E29: 0.5 | F29: -41.6 | J29: =J28+Sheet2!I$12 -> 1.083333333 | K29: 14.37 | L29: 0.5 | M29: -10.61666667
C30: =C29+Sheet2!B$12 -> 1.35 | D30: 3.84 | E30: 0.5 | F30: -43.2 | J30: =J29+Sheet2!I$12 -> 1.125 | K30: 13.93 | L30: 0.5 | M30: -11.025
C31: =C30+Sheet2!B$12 -> 1.4 | D31: 1.64 | E31: 0.5 | F31: -44.8 | J31: =J30+Sheet2!I$12 -> 1.166666667 | K31: 13.47 | L31: 0.5 | M31: -11.43333333
C32: =C31+Sheet2!B$12 -> 1.45 | D32: 0.59 | E32: 0.5 | F32: 42.29604726 | J32: =J31+Sheet2!I$12 -> 1.208333333 | K32: 12.99 | L32: 0.5 | M32: -11.84166667
C33: =C32+Sheet2!B$12 -> 1.5 | D33: 2.66 | E33: 0.5 | F33: 40.69604726 | J33: =J32+Sheet2!I$12 -> 1.25 | K33: 12.50 | L33: 0.5 | M33: -12.25
C34: =C33+Sheet2!B$12 -> 1.55 | D34: 4.66 | E34: 0.5 | F34: 39.09604726 | J34: =J33+Sheet2!I$12 -> 1.291666667 | K34: 11.99 | L34: 0.5 | M34: -12.65833333
C35: =C34+Sheet2!B$12 -> 1.6 | D35: 6.57 | E35: 0.5 | F35: 37.49604726 | J35: =J34+Sheet2!I$12 -> 1.333333333 | K35: 11.47 | L35: 0.5 | M35: -13.06666667
B36: t2 | C36: =C35+Sheet2!B$12 -> 1.65 | D36: 8.41 | E36: 0.5 | F36: 35.89604726 | I36: t2 | J36: =J35+Sheet2!I$12 -> 1.375 | K36: 10.93 | L36: 0.5 | M36: -13.475
C37: =C36+Sheet2!B$12 -> 1.7 | D37: 10.16 | E37: 0.5 | F37: 34.29604726 | J37: =J36+Sheet2!I$12 -> 1.416666667 | K37: 10.37 | L37: 0.5 | M37: -13.88333333
C38: =C37+Sheet2!B$12 -> 1.75 | D38: 11.84 | E38: 0.5 | F38: 32.69604726 | J38: =J37+Sheet2!I$12 -> 1.458333333 | K38: 9.79 | L38: 0.5 | M38: -14.29166667
C39: =C38+Sheet2!B$12 -> 1.8 | D39: 13.43 | E39: 0.5 | F39: 31.09604726 | J39: =J38+Sheet2!I$12 -> 1.5 | K39: 9.20 | L39: 0.5 | M39: -14.7
C40: =C39+Sheet2!B$12 -> 1.85 | D40: 14.95 | E40: 0.5 | F40: 29.49604726 | J40: =J39+Sheet2!I$12 -> 1.541666667 | K40: 8.59 | L40: 0.5 | M40: -15.10833333
C41: =C40+Sheet2!B$12 -> 1.9 | D41: 16.38 | E41: 0.5 | F41: 27.89604726 | J41: =J40+Sheet2!I$12 -> 1.583333333 | K41: 7.97 | L41: 0.5 | M41: -15.51666667
C42: =C41+Sheet2!B$12 -> 1.95 | D42: 17.74 | E42: 0.5 | F42: 26.29604726 | J42: =J41+Sheet2!I$12 -> 1.625 | K42: 7.32 | L42: 0.5 | M42: -15.925
C43: =C42+Sheet2!B$12 -> 2 | D43: 19.01 | E43: 0.5 | F43: 24.69604726 | J43: =J42+Sheet2!I$12 -> 1.666666667 | K43: 6.67 | L43: 0.5 | M43: -16.33333333
C44: =C43+Sheet2!B$12 -> 2.05 | D44: 20.21 | E44: 0.5 | F44: 23.09604726 | J44: =J43+Sheet2!I$12 -> 1.708333333 | K44: 5.99 | L44: 0.5 | M44: -16.74166667
C45: =C44+Sheet2!B$12 -> 2.1 | D45: 21.32 | E45: 0.5 | F45: 21.49604726 | J45: =J44+Sheet2!I$12 -> 1.75 | K45: 5.30 | L45: 0.5 | M45: -17.15
C46: =C45+Sheet2!B$12 -> 2.15 | D46: 22.36 | E46: 0.5 | F46: 19.89604726 | J46: =J45+Sheet2!I$12 -> 1.791666667 | K46: 4.59 | L46: 0.5 | M46: -17.55833333
C47: =C46+Sheet2!B$12 -> 2.2 | D47: 23.31 | E47: 0.5 | F47: 18.29604726 | J47: =J46+Sheet2!I$12 -> 1.833333333 | K47: 3.87 | L47: 0.5 | M47: -17.96666667
C48: =C47+Sheet2!B$12 -> 2.25 | D48: 24.19 | E48: 0.5 | F48: 16.69604726 | J48: =J47+Sheet2!I$12 -> 1.875 | K48: 3.12 | L48: 0.5 | M48: -18.375
C49: =C48+Sheet2!B$12 -> 2.3 | D49: 24.98 | E49: 0.5 | F49: 15.09604726 | J49: =J48+Sheet2!I$12 -> 1.916666667 | K49: 2.37 | L49: 0.5 | M49: -18.78333333
C50: =C49+Sheet2!B$12 -> 2.35 | D50: 25.70 | E50: 0.5 | F50: 13.49604726 | J50: =J49+Sheet2!I$12 -> 1.958333333 | K50: 1.59 | L50: 0.5 | M50: -19.19166667
C51: =C50+Sheet2!B$12 -> 2.4 | D51: 26.33 | E51: 0.5 | F51: 11.89604726 | J51: =J50+Sheet2!I$12 -> 2 | K51: 0.80 | L51: 0.5 | M51: -19.6
B52: t3 | C52: =C51+Sheet2!B$12 -> 2.45 | D52: 26.89 | E52: 0.5 | F52: 10.29604726 | I52: t3 | J52: =J51+Sheet2!I$12 -> 2.041666667 | K52: 0.38 | L52: 0.5 | M52: 17.60974743
B53: =R4 -> 6.591598409 | C53: =C52+Sheet2!B$12 -> 2.5 | D53: 27.36 | E53: 0.5 | F53: 8.696047263 | I53: =Z3 -> 5.656854249 | J53: =J52+Sheet2!I$12 -> 2.083333333 | K53: 1.10 | L53: 0.5 | M53: 17.20141409
C54: =C53+Sheet2!B$12 -> 2.55 | D54: 27.75 | E54: 0.5 | F54: 7.096047263 | J54: =J53+Sheet2!I$12 -> 2.125 | K54: 1.81 | L54: 0.5 | M54: 16.79308076
C55: =C54+Sheet2!B$12 -> 2.6 | D55: 28.07 | E55: 0.5 | F55: 5.496047263 | J55: =J54+Sheet2!I$12 -> 2.166666667 | K55: 2.51 | L55: 0.5 | M55: 16.38474743
C56: =C55+Sheet2!B$12 -> 2.65 | D56: 28.30 | E56: 0.5 | F56: 3.896047263 | J56: =J55+Sheet2!I$12 -> 2.208333333 | K56: 3.18 | L56: 0.5 | M56: 15.97641409
C57: =C56+Sheet2!B$12 -> 2.7 | D57: 28.46 | E57: 0.5 | F57: 2.296047263 | J57: =J56+Sheet2!I$12 -> 2.25 | K57: 3.84 | L57: 0.5 | M57: 15.56808076
C58: =C57+Sheet2!B$12 -> 2.75 | D58: 28.53 | E58: 0.5 | F58: 0.6960472625 | J58: =J57+Sheet2!I$12 -> 2.291666667 | K58: 4.48 | L58: 0.5 | M58: 15.15974743
C59: =C58+Sheet2!B$12 -> 2.8 | D59: 28.53 | E59: 0.5 | F59: -0.9039527375 | J59: =J58+Sheet2!I$12 -> 2.333333333 | K59: 5.11 | L59: 0.5 | M59: 14.75141409
C60: =C59+Sheet2!B$12 -> 2.85 | D60: 28.44 | E60: 0.5 | F60: -2.503952737 | J60: =J59+Sheet2!I$12 -> 2.375 | K60: 5.72 | L60: 0.5 | M60: 14.34308076
C61: =C60+Sheet2!B$12 -> 2.9 | D61: 28.28 | E61: 0.5 | F61: -4.103952737 | J61: =J60+Sheet2!I$12 -> 2.416666667 | K61: 6.31 | L61: 0.5 | M61: 13.93474743
C62: =C61+Sheet2!B$12 -> 2.95 | D62: 28.03 | E62: 0.5 | F62: -5.703952737 | J62: =J61+Sheet2!I$12 -> 2.458333333 | K62: 6.88 | L62: 0.5 | M62: 13.52641409
C63: =C62+Sheet2!B$12 -> 3 | D63: 27.71 | E63: 0.5 | F63: -7.303952737 | J63: =J62+Sheet2!I$12 -> 2.5 | K63: 7.44 | L63: 0.5 | M63: 13.11808076
B64: t4 | C64: =C63+Sheet2!B$12 -> 3.05 | D64: 27.30 | E64: 0.5 | F64: -8.903952737 | I64: t4 | J64: =J63+Sheet2!I$12 -> 2.541666667 | K64: 7.99 | L64: 0.5 | M64: 12.70974743
B65: =R5 -> 8.901937997 | C65: =C64+Sheet2!B$12 -> 3.1 | D65: 26.82 | E65: 0.5 | F65: -10.50395274 | I65: =Z4 -> 8.929748494 | J65: =J64+Sheet2!I$12 -> 2.583333333 | K65: 8.51 | L65: 0.5 | M65: 12.30141409
C66: =C65+Sheet2!B$12 -> 3.15 | D66: 26.25 | E66: 0.5 | F66: -12.10395274 | J66: =J65+Sheet2!I$12 -> 2.625 | K66: 9.02 | L66: 0.5 | M66: 11.89308076
C67: =C66+Sheet2!B$12 -> 3.2 | D67: 25.61 | E67: 0.5 | F67: -13.70395274 | J67: =J66+Sheet2!I$12 -> 2.666666667 | K67: 9.51 | L67: 0.5 | M67: 11.48474743
C68: =C67+Sheet2!B$12 -> 3.25 | D68: =IF(C68<=R$2,h0-16*C68^2,IF(AND(C68>R$2,C68<=R$3),T$2*(C68-R$2)-16*(C68-R$2)^2,IF(AND(C68>R$3,C68<=R$4),T$3*(C68-R$3)-16*(C68-R$3)^2,IF(AND(C68>R$4,C68<=R$5),T$4*(C68-R$4)-16*(C68-R$4)^2,IF(AND(C68>R$5,C68<=R$6),T$5*(C68-R$5)-16*(C68-R$5)^2,IF(AND(C68>R$6,C68<=R$7),T$6*(C68-R$6)-16*(C68-R$6)^2,IF(AND(C68>R$7,C68<=R$8),T$7*(C68-R$7)-16*(C68-R$7)^2,0))))))) -> 24.88 | E68: 0.5 | F68: =IF(C68<=R$2,-32*C68,IF(AND(C68>R$2,C68<=R$3),T$2-32*(C68-R$2),IF(AND(C68>R$3,C68<=R$4),T$3-32*(C68-R$3),IF(AND(C68>R$4,C68<=R$5),T$4-32*(C68-R$4),IF(AND(C68>R$5,C68<=R$6),T$5-32*(C68-R$5),IF(AND(C68>R$6,C68<=R$7),T$6-32*(C68-R$6),IF(AND(C68>R$7,C68<=R$8),T$7-32*(C68-R$7),0))))))) -> -15.30395274 | J68: =J67+Sheet2!I$12 -> 2.708333333 | K68: =IF(J68<=Z$2,H00-4.8*J68^2,IF(AND(J68>Z$2,J68<=Z$3),AB$2*(J68-Z$2)-4.8*(J68-Z$2)^2,IF(AND(J68>Z$3,J68<=Z$4),AB$3*(J68-Z$3)-4.8*(J68-Z$3)^2,IF(AND(J68>Z$4,J68<=Z$5),AB$4*(J68-Z$4)-4.8*(J68-Z$4)^2,IF(AND(J68>Z$5,J68<=Z$6),AB$5*(J68-Z$5)-4.8*(J68-Z$5)^2,IF(AND(J68>Z$6,J68<=Z$7),AB$6*(J68-Z$6)-4.8*(J68-Z$6)^2,IF(AND(J68>Z$7,J68<=Z$8),AB$7*(J68-Z$7)-4.8*(J68-Z$7)^2,0))))))) -> 9.99 | L68: 0.5 | M68: =IF(J68<=Z$2,-gg*J68,IF(AND(J68>Z$2,J68<=Z$3),AB$2-gg*(J68-Z$2),IF(AND(J68>Z$3,J68<=Z$4),AB$3-gg*(J68-Z$3),IF(AND(J68>Z$4,J68<=Z$5),AB$4-gg*(J68-Z$4),IF(AND(J68>Z$5,J68<=Z$6),AB$5-gg*(J68-Z$5),IF(AND(J68>Z$6,J68<=Z$7),AB$6-gg*(J68-Z$6),IF(AND(J68>Z$7,J68<=Z$8),AB$7-gg*(J68-Z$7),0))))))) -> 11.07641409
C69: =C68+Sheet2!B$12 -> 3.3 | D69: 24.08 | E69: 0.5 | F69: -16.90395274 | J69: =J68+Sheet2!I$12 -> 2.75 | K69: 10.45 | L69: 0.5 | M69: 10.66808076
C70: =C69+Sheet2!B$12 -> 3.35 | D70: 23.19 | E70: 0.5 | F70: -18.50395274 | J70: =J69+Sheet2!I$12 -> 2.791666667 | K70: 10.89 | L70: 0.5 | M70: 10.25974743
C71: =C70+Sheet2!B$12 -> 3.4 | D71: 22.23 | E71: 0.5 | F71: -20.10395274 | J71: =J70+Sheet2!I$12 -> 2.833333333 | K71: 11.31 | L71: 0.5 | M71: 9.851414092
C72: =C71+Sheet2!B$12 -> 3.45 | D72: 21.18 | E72: 0.5 | F72: -21.70395274 | J72: =J71+Sheet2!I$12 -> 2.875 | K72: 11.72 | L72: 0.5 | M72: 9.443080759
C73: =C72+Sheet2!B$12 -> 3.5 | D73: 20.06 | E73: 0.5 | F73: -23.30395274 | J73: =J72+Sheet2!I$12 -> 2.916666667 | K73: 12.12 | L73: 0.5 | M73: 9.034747426
C74: =C73+Sheet2!B$12 -> 3.55 | D74: 18.85 | E74: 0.5 | F74: -24.90395274 | J74: =J73+Sheet2!I$12 -> 2.958333333 | K74: 12.49 | L74: 0.5 | M74: 8.626414092
B75: t5 | C75: =C74+Sheet2!B$12 -> 3.6 | D75: 17.57 | E75: 0.5 | F75: -26.50395274 | I75: t5 | J75: =J74+Sheet2!I$12 -> 3 | K75: 12.85 | L75: 0.5 | M75: 8.218080759
B76: =R6 -> 11.05055381 | C76: =C75+Sheet2!B$12 -> 3.65 | D76: 16.20 | E76: 0.5 | F76: -28.10395274 | I76: =Z5 -> 11.87535331 | J76: =J75+Sheet2!I$12 -> 3.041666667 | K76: 13.19 | L76: 0.5 | M76: 7.809747426
C77: =C76+Sheet2!B$12 -> 3.7 | D77: 14.76 | E77: 0.5 | F77: -29.70395274 | J77: =J76+Sheet2!I$12 -> 3.083333333 | K77: 13.52 | L77: 0.5 | M77: 7.401414092
C78: =C77+Sheet2!B$12 -> 3.75 | D78: 13.23 | E78: 0.5 | F78: -31.30395274 | J78: =J77+Sheet2!I$12 -> 3.125 | K78: 13.83 | L78: 0.5 | M78: 6.993080759
C79: =C78+Sheet2!B$12 -> 3.8 | D79: 11.62 | E79: 0.5 | F79: -32.90395274 | J79: =J78+Sheet2!I$12 -> 3.166666667 | K79: 14.12 | L79: 0.5 | M79: 6.584747426
C80: =C79+Sheet2!B$12 -> 3.85 | D80: 9.94 | E80: 0.5 | F80: -34.50395274 | J80: =J79+Sheet2!I$12 -> 3.208333333 | K80: 14.39 | L80: 0.5 | M80: 6.176414092
C81: =C80+Sheet2!B$12 -> 3.9 | D81: 8.17 | E81: 0.5 | F81: -36.10395274 | J81: =J80+Sheet2!I$12 -> 3.25 | K81: 14.65 | L81: 0.5 | M81: 5.768080759
C82: =C81+Sheet2!B$12 -> 3.95 | D82: 6.33 | E82: 0.5 | F82: -37.70395274 | J82: =J81+Sheet2!I$12 -> 3.291666667 | K82: 14.90 | L82: 0.5 | M82: 5.359747426
B83: t6 | C83: =C82+Sheet2!B$12 -> 4 | D83: 4.40 | E83: 0.5 | F83: -39.30395274 | I83: t6 | J83: =J82+Sheet2!I$12 -> 3.333333333 | K83: 15.12 | L83: 0.5 | M83: 4.951414092
B84: =R7 -> 13.04876652 | C84: =C83+Sheet2!B$12 -> 4.05 | D84: 2.40 | E84: 0.5 | F84: -40.90395274 | I84: =Z6 -> 14.52639765 | J84: =J83+Sheet2!I$12 -> 3.375 | K84: 15.33 | L84: 0.5 | M84: 4.543080759
C85: =C84+Sheet2!B$12 -> 4.1 | D85: 0.31 | E85: 0.5 | F85: -42.50395274 | J85: =J84+Sheet2!I$12 -> 3.416666667 | K85: 15.52 | L85: 0.5 | M85: 4.134747426
C86: =C85+Sheet2!B$12 -> 4.15 | D86: 1.67 | E86: 0.5 | F86: 38.38337122 | J86: =J85+Sheet2!I$12 -> 3.458333333 | K86: 15.70 | L86: 0.5 | M86: 3.726414092
C87: =C86+Sheet2!B$12 -> 4.2 | D87: 3.54 | E87: 0.5 | F87: 36.78337122 | J87: =J86+Sheet2!I$12 -> 3.5 | K87: 15.86 | L87: 0.5 | M87: 3.318080759
C88: =C87+Sheet2!B$12 -> 4.25 | D88: 5.34 | E88: 0.5 | F88: 35.18337122 | J88: =J87+Sheet2!I$12 -> 3.541666667 | K88: 16.00 | L88: 0.5 | M88: 2.909747426
B89: t7 | C89: =C88+Sheet2!B$12 -> 4.3 | D89: 7.06 | E89: 0.5 | F89: 33.58337122 | I89: t7 | J89: =J88+Sheet2!I$12 -> 3.583333333 | K89: 16.13 | L89: 0.5 | M89: 2.501414092
B90: =R8 -> 14.90710434 | C90: =C89+Sheet2!B$12 -> 4.35 | D90: 8.70 | E90: 0.5 | F90: 31.98337122 | I90: =Z7 -> 16.91233756 | J90: =J89+Sheet2!I$12 -> 3.625 | K90: 16.23 | L90: 0.5 | M90: 2.093080759
C91: =C90+Sheet2!B$12 -> 4.4 | D91: 10.26 | E91: 0.5 | F91: 30.38337122 | J91: =J90+Sheet2!I$12 -> 3.666666667 | K91: 16.33 | L91: 0.5 | M91: 1.684747426
C92: =C91+Sheet2!B$12 -> 4.45 | D92: 11.74 | E92: 0.5 | F92: 28.78337122 | J92: =J91+Sheet2!I$12 -> 3.708333333 | K92: 16.40 | L92: 0.5 | M92: 1.276414092
C93: =C92+Sheet2!B$12 -> 4.5 | D93: 13.14 | E93: 0.5 | F93: 27.18337122 | J93: =J92+Sheet2!I$12 -> 3.75 | K93: 16.46 | L93: 0.5 | M93: 0.8680807591
B94: t8 | C94: =C93+Sheet2!B$12 -> 4.55 | D94: 14.46 | E94: 0.5 | F94: 25.58337122 | I94: t8 | J94: =J93+Sheet2!I$12 -> 3.791666667 | K94: 16.50 | L94: 0.5 | M94: 0.4597474258
B95: =#REF! ->  | C95: =C94+Sheet2!B$12 -> 4.6 | D95: 15.70 | E95: 0.5 | F95: 23.98337122 | I95: =Z8 -> 19.05968347 | J95: =J94+Sheet2!I$12 -> 3.833333333 | K95: 16.53 | L95: 0.5 | M95: 0.05141409246
C96: =C95+Sheet2!B$12 -> 4.65 | D96: 16.86 | E96: 0.5 | F96: 22.38337122 | J96: =J95+Sheet2!I$12 -> 3.875 | K96: 16.54 | L96: 0.5 | M96: -0.3569192409
C97: =C96+Sheet2!B$12 -> 4.7 | D97: 17.94 | E97: 0.5 | F97: 20.78337122 | J97: =J96+Sheet2!I$12 -> 3.916666667 | K97: 16.53 | L97: 0.5 | M97: -0.7652525742
C98: =C97+Sheet2!B$12 -> 4.75 | D98: 18.94 | E98: 0.5 | F98: 19.18337122 | J98: =J97+Sheet2!I$12 -> 3.958333333 | K98: 16.51 | L98: 0.5 | M98: -1.173585908
C99: =C98+Sheet2!B$12 -> 4.8 | D99: 19.85 | E99: 0.5 | F99: 17.58337122 | J99: =J98+Sheet2!I$12 -> 4 | K99: 16.46 | L99: 0.5 | M99: -1.581919241
C100: =C99+Sheet2!B$12 -> 4.85 | D100: 20.69 | E100: 0.5 | F100: 15.98337122 | J100: =J99+Sheet2!I$12 -> 4.041666667 | K100: 16.41 | L100: 0.5 | M100: -1.990252574
C101: =C100+Sheet2!B$12 -> 4.9 | D101: 21.45 | E101: 0.5 | F101: 14.38337122 | J101: =J100+Sheet2!I$12 -> 4.083333333 | K101: 16.33 | L101: 0.5 | M101: -2.398585908
C102: =C101+Sheet2!B$12 -> 4.95 | D102: 22.13 | E102: 0.5 | F102: 12.78337122 | J102: =J101+Sheet2!I$12 -> 4.125 | K102: 16.24 | L102: 0.5 | M102: -2.806919241
C103: =C102+Sheet2!B$12 -> 5 | D103: 22.73 | E103: 0.5 | F103: 11.18337122 | J103: =J102+Sheet2!I$12 -> 4.166666667 | K103: 16.13 | L103: 0.5 | M103: -3.215252574
C104: =C103+Sheet2!B$12 -> 5.05 | D104: 23.25 | E104: 0.5 | F104: 9.583371217 | J104: =J103+Sheet2!I$12 -> 4.208333333 | K104: 16.01 | L104: 0.5 | M104: -3.623585908
C105: =C104+Sheet2!B$12 -> 5.1 | D105: 23.69 | E105: 0.5 | F105: 7.983371217 | J105: =J104+Sheet2!I$12 -> 4.25 | K105: 15.87 | L105: 0.5 | M105: -4.031919241
C106: =C105+Sheet2!B$12 -> 5.15 | D106: 24.05 | E106: 0.5 | F106: 6.383371217 | J106: =J105+Sheet2!I$12 -> 4.291666667 | K106: 15.71 | L106: 0.5 | M106: -4.440252574
C107: =C106+Sheet2!B$12 -> 5.2 | D107: 24.33 | E107: 0.5 | F107: 4.783371217 | J107: =J106+Sheet2!I$12 -> 4.333333333 | K107: 15.54 | L107: 0.5 | M107: -4.848585908
C108: =C107+Sheet2!B$12 -> 5.25 | D108: 24.53 | E108: 0.5 | F108: 3.183371217 | J108: =J107+Sheet2!I$12 -> 4.375 | K108: 15.34 | L108: 0.5 | M108: -5.256919241
C109: =C108+Sheet2!B$12 -> 5.3 | D109: 24.65 | E109: 0.5 | F109: 1.583371217 | J109: =J108+Sheet2!I$12 -> 4.416666667 | K109: 15.14 | L109: 0.5 | M109: -5.665252574
C110: =C109+Sheet2!B$12 -> 5.35 | D110: 24.69 | E110: 0.5 | F110: -0.01662878328 | J110: =J109+Sheet2!I$12 -> 4.458333333 | K110: 14.91 | L110: 0.5 | M110: -6.073585908
C111: =C110+Sheet2!B$12 -> 5.4 | D111: 24.64 | E111: 0.5 | F111: -1.616628783 | J111: =J110+Sheet2!I$12 -> 4.5 | K111: 14.67 | L111: 0.5 | M111: -6.481919241
C112: =C111+Sheet2!B$12 -> 5.45 | D112: 24.52 | E112: 0.5 | F112: -3.216628783 | J112: =J111+Sheet2!I$12 -> 4.541666667 | K112: 14.41 | L112: 0.5 | M112: -6.890252574
C113: =C112+Sheet2!B$12 -> 5.5 | D113: 24.32 | E113: 0.5 | F113: -4.816628783 | J113: =J112+Sheet2!I$12 -> 4.583333333 | K113: 14.14 | L113: 0.5 | M113: -7.298585908
C114: =C113+Sheet2!B$12 -> 5.55 | D114: 24.04 | E114: 0.5 | F114: -6.416628783 | J114: =J113+Sheet2!I$12 -> 4.625 | K114: 13.85 | L114: 0.5 | M114: -7.706919241
C115: =C114+Sheet2!B$12 -> 5.6 | D115: 23.68 | E115: 0.5 | F115: -8.016628783 | J115: =J114+Sheet2!I$12 -> 4.666666667 | K115: 13.54 | L115: 0.5 | M115: -8.115252574
C116: =C115+Sheet2!B$12 -> 5.65 | D116: 23.24 | E116: 0.5 | F116: -9.616628783 | J116: =J115+Sheet2!I$12 -> 4.708333333 | K116: 13.22 | L116: 0.5 | M116: -8.523585908
C117: =C116+Sheet2!B$12 -> 5.7 | D117: 22.72 | E117: 0.5 | F117: -11.21662878 | J117: =J116+Sheet2!I$12 -> 4.75 | K117: 12.87 | L117: 0.5 | M117: -8.931919241
C118: =C117+Sheet2!B$12 -> 5.75 | D118: 22.12 | E118: 0.5 | F118: -12.81662878 | J118: =J117+Sheet2!I$12 -> 4.791666667 | K118: 12.52 | L118: 0.5 | M118: -9.340252574
C119: =C118+Sheet2!B$12 -> 5.8 | D119: 21.44 | E119: 0.5 | F119: -14.41662878 | J119: =J118+Sheet2!I$12 -> 4.833333333 | K119: 12.14 | L119: 0.5 | M119: -9.748585908
C120: =C119+Sheet2!B$12 -> 5.85 | D120: 20.68 | E120: 0.5 | F120: -16.01662878 | J120: =J119+Sheet2!I$12 -> 4.875 | K120: 11.75 | L120: 0.5 | M120: -10.15691924
C121: =C120+Sheet2!B$12 -> 5.9 | D121: 19.84 | E121: 0.5 | F121: -17.61662878 | J121: =J120+Sheet2!I$12 -> 4.916666667 | K121: 11.34 | L121: 0.5 | M121: -10.56525257
C122: =C121+Sheet2!B$12 -> 5.95 | D122: 18.92 | E122: 0.5 | F122: -19.21662878 | J122: =J121+Sheet2!I$12 -> 4.958333333 | K122: 10.92 | L122: 0.5 | M122: -10.97358591
C123: =C122+Sheet2!B$12 -> 6 | D123: 17.91 | E123: 0.5 | F123: -20.81662878 | J123: =J122+Sheet2!I$12 -> 5 | K123: 10.48 | L123: 0.5 | M123: -11.38191924
C124: =C123+Sheet2!B$12 -> 6.05 | D124: 16.83 | E124: 0.5 | F124: -22.41662878 | J124: =J123+Sheet2!I$12 -> 5.041666667 | K124: 10.02 | L124: 0.5 | M124: -11.79025257
C125: =C124+Sheet2!B$12 -> 6.1 | D125: 15.67 | E125: 0.5 | F125: -24.01662878 | J125: =J124+Sheet2!I$12 -> 5.083333333 | K125: 9.55 | L125: 0.5 | M125: -12.19858591
C126: =C125+Sheet2!B$12 -> 6.15 | D126: 14.43 | E126: 0.5 | F126: -25.61662878 | J126: =J125+Sheet2!I$12 -> 5.125 | K126: 9.06 | L126: 0.5 | M126: -12.60691924
C127: =C126+Sheet2!B$12 -> 6.2 | D127: 13.11 | E127: 0.5 | F127: -27.21662878 | J127: =J126+Sheet2!I$12 -> 5.166666667 | K127: 8.55 | L127: 0.5 | M127: -13.01525257
C128: =C127+Sheet2!B$12 -> 6.25 | D128: 11.71 | E128: 0.5 | F128: -28.81662878 | J128: =J127+Sheet2!I$12 -> 5.208333333 | K128: 8.02 | L128: 0.5 | M128: -13.42358591
C129: =C128+Sheet2!B$12 -> 6.3 | D129: 10.23 | E129: 0.5 | F129: -30.41662878 | J129: =J128+Sheet2!I$12 -> 5.25 | K129: 7.48 | L129: 0.5 | M129: -13.83191924
C130: =C129+Sheet2!B$12 -> 6.35 | D130: 8.67 | E130: 0.5 | F130: -32.01662878 | J130: =J129+Sheet2!I$12 -> 5.291666667 | K130: 6.92 | L130: 0.5 | M130: -14.24025257
C131: =C130+Sheet2!B$12 -> 6.4 | D131: 7.03 | E131: 0.5 | F131: -33.61662878 | J131: =J130+Sheet2!I$12 -> 5.333333333 | K131: 6.35 | L131: 0.5 | M131: -14.64858591
C132: =C131+Sheet2!B$12 -> 6.45 | D132: =IF(C132<=R$2,h0-16*C132^2,IF(AND(C132>R$2,C132<=R$3),T$2*(C132-R$2)-16*(C132-R$2)^2,IF(AND(C132>R$3,C132<=R$4),T$3*(C132-R$3)-16*(C132-R$3)^2,IF(AND(C132>R$4,C132<=R$5),T$4*(C132-R$4)-16*(C132-R$4)^2,IF(AND(C132>R$5,C132<=R$6),T$5*(C132-R$5)-16*(C132-R$5)^2,IF(AND(C132>R$6,C132<=R$7),T$6*(C132-R$6)-16*(C132-R$6)^2,IF(AND(C132>R$7,C132<=R$8),T$7*(C132-R$7)-16*(C132-R$7)^2,0))))))) -> 5.31 | E132: 0.5 | F132: =IF(C132<=R$2,-32*C132,IF(AND(C132>R$2,C132<=R$3),T$2-32*(C132-R$2),IF(AND(C132>R$3,C132<=R$4),T$3-32*(C132-R$3),IF(AND(C132>R$4,C132<=R$5),T$4-32*(C132-R$4),IF(AND(C132>R$5,C132<=R$6),T$5-32*(C132-R$5),IF(AND(C132>R$6,C132<=R$7),T$6-32*(C132-R$6),IF(AND(C132>R$7,C132<=R$8),T$7-32*(C132-R$7),0))))))) -> -35.21662878 | J132: =J131+Sheet2!I$12 -> 5.375 | K132: =IF(J132<=Z$2,H00-4.8*J132^2,IF(AND(J132>Z$2,J132<=Z$3),AB$2*(J132-Z$2)-4.8*(J132-Z$2)^2,IF(AND(J132>Z$3,J132<=Z$4),AB$3*(J132-Z$3)-4.8*(J132-Z$3)^2,IF(AND(J132>Z$4,J132<=Z$5),AB$4*(J132-Z$4)-4.8*(J132-Z$4)^2,IF(AND(J132>Z$5,J132<=Z$6),AB$5*(J132-Z$5)-4.8*(J132-Z$5)^2,IF(AND(J132>Z$6,J132<=Z$7),AB$6*(J132-Z$6)-4.8*(J132-Z$6)^2,IF(AND(J132>Z$7,J132<=Z$8),AB$7*(J132-Z$7)-4.8*(J132-Z$7)^2,0))))))) -> 5.76 | L132: 0.5 | M132: =IF(J132<=Z$2,-gg*J132,IF(AND(J132>Z$2,J132<=Z$3),AB$2-gg*(J132-Z$2),IF(AND(J132>Z$3,J132<=Z$4),AB$3-gg*(J132-Z$3),IF(AND(J132>Z$4,J132<=Z$5),AB$4-gg*(J132-Z$4),IF(AND(J132>Z$5,J132<=Z$6),AB$5-gg*(J132-Z$5),IF(AND(J132>Z$6,J132<=Z$7),AB$6-gg*(J132-Z$6),IF(AND(J132>Z$7,J132<=Z$8),AB$7-gg*(J132-Z$7),0))))))) -> -15.05691924
C133: =C132+Sheet2!B$12 -> 6.5 | D133: 3.51 | E133: 0.5 | F133: -36.81662878 | J133: =J132+Sheet2!I$12 -> 5.416666667 | K133: 5.15 | L133: 0.5 | M133: -15.46525257
C134: =C133+Sheet2!B$12 -> 6.55 | D134: 1.63 | E134: 0.5 | F134: -38.41662878 | J134: =J133+Sheet2!I$12 -> 5.458333333 | K134: 4.53 | L134: 0.5 | M134: -15.87358591
C135: =C134+Sheet2!B$12 -> 6.6 | D135: 0.31 | E135: 0.5 | F135: 36.69658249 | J135: =J134+Sheet2!I$12 -> 5.5 | K135: 3.89 | L135: 0.5 | M135: -16.28191924
C136: =C135+Sheet2!B$12 -> 6.65 | D136: 2.10 | E136: 0.5 | F136: 35.09658249 | J136: =J135+Sheet2!I$12 -> 5.541666667 | K136: 3.23 | L136: 0.5 | M136: -16.69025257
C137: =C136+Sheet2!B$12 -> 6.7 | D137: 3.82 | E137: 0.5 | F137: 33.49658249 | J137: =J136+Sheet2!I$12 -> 5.583333333 | K137: 2.55 | L137: 0.5 | M137: -17.09858591
C138: =C137+Sheet2!B$12 -> 6.75 | D138: 5.45 | E138: 0.5 | F138: 31.89658249 | J138: =J137+Sheet2!I$12 -> 5.625 | K138: 1.86 | L138: 0.5 | M138: -17.50691924
C139: =C138+Sheet2!B$12 -> 6.8 | D139: 7.01 | E139: 0.5 | F139: 30.29658249 | J139: =J138+Sheet2!I$12 -> 5.666666667 | K139: 0.16 | L139: 0.5 | M139: 15.94102011
C140: =C139+Sheet2!B$12 -> 6.85 | D140: 8.48 | E140: 0.5 | F140: 28.69658249 | J140: =J139+Sheet2!I$12 -> 5.708333333 | K140: 0.81 | L140: 0.5 | M140: 15.53268678
C141: =C140+Sheet2!B$12 -> 6.9 | D141: 9.88 | E141: 0.5 | F141: 27.09658249 | J141: =J140+Sheet2!I$12 -> 5.75 | K141: 1.45 | L141: 0.5 | M141: 15.12435344
C142: =C141+Sheet2!B$12 -> 6.95 | D142: 11.19 | E142: 0.5 | F142: 25.49658249 | J142: =J141+Sheet2!I$12 -> 5.791666667 | K142: 2.07 | L142: 0.5 | M142: 14.71602011
C143: =C142+Sheet2!B$12 -> 7 | D143: 12.43 | E143: 0.5 | F143: 23.89658249 | J143: =J142+Sheet2!I$12 -> 5.833333333 | K143: 2.68 | L143: 0.5 | M143: 14.30768678
C144: =C143+Sheet2!B$12 -> 7.05 | D144: 13.58 | E144: 0.5 | F144: 22.29658249 | J144: =J143+Sheet2!I$12 -> 5.875 | K144: 3.27 | L144: 0.5 | M144: 13.89935344
C145: =C144+Sheet2!B$12 -> 7.1 | D145: 14.66 | E145: 0.5 | F145: 20.69658249 | J145: =J144+Sheet2!I$12 -> 5.916666667 | K145: 3.84 | L145: 0.5 | M145: 13.49102011
C146: =C145+Sheet2!B$12 -> 7.15 | D146: 15.65 | E146: 0.5 | F146: 19.09658249 | J146: =J145+Sheet2!I$12 -> 5.958333333 | K146: 4.40 | L146: 0.5 | M146: 13.08268678
C147: =C146+Sheet2!B$12 -> 7.2 | D147: 16.57 | E147: 0.5 | F147: 17.49658249 | J147: =J146+Sheet2!I$12 -> 6 | K147: 4.94 | L147: 0.5 | M147: 12.67435344
C148: =C147+Sheet2!B$12 -> 7.25 | D148: 17.40 | E148: 0.5 | F148: 15.89658249 | J148: =J147+Sheet2!I$12 -> 6.041666667 | K148: 5.46 | L148: 0.5 | M148: 12.26602011
C149: =C148+Sheet2!B$12 -> 7.3 | D149: 18.16 | E149: 0.5 | F149: 14.29658249 | J149: =J148+Sheet2!I$12 -> 6.083333333 | K149: 5.97 | L149: 0.5 | M149: 11.85768678
C150: =C149+Sheet2!B$12 -> 7.35 | D150: 18.83 | E150: 0.5 | F150: 12.69658249 | J150: =J149+Sheet2!I$12 -> 6.125 | K150: 6.46 | L150: 0.5 | M150: 11.44935344
C151: =C150+Sheet2!B$12 -> 7.4 | D151: 19.43 | E151: 0.5 | F151: 11.09658249 | J151: =J150+Sheet2!I$12 -> 6.166666667 | K151: 6.93 | L151: 0.5 | M151: 11.04102011
C152: =C151+Sheet2!B$12 -> 7.45 | D152: 19.94 | E152: 0.5 | F152: 9.496582494 | J152: =J151+Sheet2!I$12 -> 6.208333333 | K152: 7.38 | L152: 0.5 | M152: 10.63268678
C153: =C152+Sheet2!B$12 -> 7.5 | D153: 20.38 | E153: 0.5 | F153: 7.896582494 | J153: =J152+Sheet2!I$12 -> 6.25 | K153: 7.82 | L153: 0.5 | M153: 10.22435344
C154: =C153+Sheet2!B$12 -> 7.55 | D154: 20.73 | E154: 0.5 | F154: 6.296582494 | J154: =J153+Sheet2!I$12 -> 6.291666667 | K154: 8.25 | L154: 0.5 | M154: 9.816020109
C155: =C154+Sheet2!B$12 -> 7.6 | D155: 21.01 | E155: 0.5 | F155: 4.696582494 | J155: =J154+Sheet2!I$12 -> 6.333333333 | K155: 8.65 | L155: 0.5 | M155: 9.407686776
C156: =C155+Sheet2!B$12 -> 7.65 | D156: 21.20 | E156: 0.5 | F156: 3.096582494 | J156: =J155+Sheet2!I$12 -> 6.375 | K156: 9.04 | L156: 0.5 | M156: 8.999353442
C157: =C156+Sheet2!B$12 -> 7.7 | D157: 21.32 | E157: 0.5 | F157: 1.496582494 | J157: =J156+Sheet2!I$12 -> 6.416666667 | K157: 9.41 | L157: 0.5 | M157: 8.591020109
C158: =C157+Sheet2!B$12 -> 7.75 | D158: 21.35 | E158: 0.5 | F158: -0.1034175059 | J158: =J157+Sheet2!I$12 -> 6.458333333 | K158: 9.77 | L158: 0.5 | M158: 8.182686776
C159: =C158+Sheet2!B$12 -> 7.8 | D159: 21.31 | E159: 0.5 | F159: -1.703417506 | J159: =J158+Sheet2!I$12 -> 6.5 | K159: 10.11 | L159: 0.5 | M159: 7.774353442
C160: =C159+Sheet2!B$12 -> 7.85 | D160: 21.18 | E160: 0.5 | F160: -3.303417506 | J160: =J159+Sheet2!I$12 -> 6.541666667 | K160: 10.43 | L160: 0.5 | M160: 7.366020109
C161: =C160+Sheet2!B$12 -> 7.9 | D161: 20.97 | E161: 0.5 | F161: -4.903417506 | J161: =J160+Sheet2!I$12 -> 6.583333333 | K161: 10.74 | L161: 0.5 | M161: 6.957686776
C162: =C161+Sheet2!B$12 -> 7.95 | D162: 20.69 | E162: 0.5 | F162: -6.503417506 | J162: =J161+Sheet2!I$12 -> 6.625 | K162: 11.03 | L162: 0.5 | M162: 6.549353442
C163: =C162+Sheet2!B$12 -> 8 | D163: 20.32 | E163: 0.5 | F163: -8.103417506 | J163: =J162+Sheet2!I$12 -> 6.666666667 | K163: 11.30 | L163: 0.5 | M163: 6.141020109
C164: =C163+Sheet2!B$12 -> 8.05 | D164: 19.88 | E164: 0.5 | F164: -9.703417506 | J164: =J163+Sheet2!I$12 -> 6.708333333 | K164: 11.56 | L164: 0.5 | M164: 5.732686776
C165: =C164+Sheet2!B$12 -> 8.1 | D165: 19.35 | E165: 0.5 | F165: -11.30341751 | J165: =J164+Sheet2!I$12 -> 6.75 | K165: 11.80 | L165: 0.5 | M165: 5.324353442
C166: =C165+Sheet2!B$12 -> 8.15 | D166: 18.75 | E166: 0.5 | F166: -12.90341751 | J166: =J165+Sheet2!I$12 -> 6.791666667 | K166: 12.02 | L166: 0.5 | M166: 4.916020109
C167: =C166+Sheet2!B$12 -> 8.2 | D167: 18.06 | E167: 0.5 | F167: -14.50341751 | J167: =J166+Sheet2!I$12 -> 6.833333333 | K167: 12.22 | L167: 0.5 | M167: 4.507686776
C168: =C167+Sheet2!B$12 -> 8.25 | D168: 17.30 | E168: 0.5 | F168: -16.10341751 | J168: =J167+Sheet2!I$12 -> 6.875 | K168: 12.41 | L168: 0.5 | M168: 4.099353442
C169: =C168+Sheet2!B$12 -> 8.3 | D169: 16.45 | E169: 0.5 | F169: -17.70341751 | J169: =J168+Sheet2!I$12 -> 6.916666667 | K169: 12.59 | L169: 0.5 | M169: 3.691020109
C170: =C169+Sheet2!B$12 -> 8.35 | D170: 15.53 | E170: 0.5 | F170: -19.30341751 | J170: =J169+Sheet2!I$12 -> 6.958333333 | K170: 12.74 | L170: 0.5 | M170: 3.282686776
C171: =C170+Sheet2!B$12 -> 8.4 | D171: 14.52 | E171: 0.5 | F171: -20.90341751 | J171: =J170+Sheet2!I$12 -> 7 | K171: 12.88 | L171: 0.5 | M171: 2.874353442
C172: =C171+Sheet2!B$12 -> 8.45 | D172: 13.44 | E172: 0.5 | F172: -22.50341751 | J172: =J171+Sheet2!I$12 -> 7.041666667 | K172: 13.00 | L172: 0.5 | M172: 2.466020109
C173: =C172+Sheet2!B$12 -> 8.5 | D173: 12.27 | E173: 0.5 | F173: -24.10341751 | J173: =J172+Sheet2!I$12 -> 7.083333333 | K173: 13.11 | L173: 0.5 | M173: 2.057686776
C174: =C173+Sheet2!B$12 -> 8.55 | D174: 11.03 | E174: 0.5 | F174: -25.70341751 | J174: =J173+Sheet2!I$12 -> 7.125 | K174: 13.20 | L174: 0.5 | M174: 1.649353442
C175: =C174+Sheet2!B$12 -> 8.6 | D175: 9.70 | E175: 0.5 | F175: -27.30341751 | J175: =J174+Sheet2!I$12 -> 7.166666667 | K175: 13.27 | L175: 0.5 | M175: 1.241020109
C176: =C175+Sheet2!B$12 -> 8.65 | D176: 8.30 | E176: 0.5 | F176: -28.90341751 | J176: =J175+Sheet2!I$12 -> 7.208333333 | K176: 13.33 | L176: 0.5 | M176: 0.8326867757
C177: =C176+Sheet2!B$12 -> 8.7 | D177: 6.81 | E177: 0.5 | F177: -30.50341751 | J177: =J176+Sheet2!I$12 -> 7.25 | K177: 13.37 | L177: 0.5 | M177: 0.4243534423
C178: =C177+Sheet2!B$12 -> 8.75 | D178: 5.25 | E178: 0.5 | F178: -32.10341751 | J178: =J177+Sheet2!I$12 -> 7.291666667 | K178: 13.39 | L178: 0.5 | M178: 0.016020109
C179: =C178+Sheet2!B$12 -> 8.8 | D179: 3.60 | E179: 0.5 | F179: -33.70341751 | J179: =J178+Sheet2!I$12 -> 7.333333333 | K179: 13.40 | L179: 0.5 | M179: -0.3923132243
C180: =C179+Sheet2!B$12 -> 8.85 | D180: 1.88 | E180: 0.5 | F180: -35.30341751 | J180: =J179+Sheet2!I$12 -> 7.375 | K180: 13.38 | L180: 0.5 | M180: -0.8006465577
C181: =C180+Sheet2!B$12 -> 8.9 | D181: 0.07 | E181: 0.5 | F181: -36.90341751 | J181: =J180+Sheet2!I$12 -> 7.416666667 | K181: 13.36 | L181: 0.5 | M181: -1.208979891
C182: =C181+Sheet2!B$12 -> 8.95 | D182: 1.62 | E182: 0.5 | F182: 32.83986898 | J182: =J181+Sheet2!I$12 -> 7.458333333 | K182: 13.31 | L182: 0.5 | M182: -1.617313224
C183: =C182+Sheet2!B$12 -> 9 | D183: 3.22 | E183: 0.5 | F183: 31.23986898 | J183: =J182+Sheet2!I$12 -> 7.5 | K183: 13.25 | L183: 0.5 | M183: -2.025646558
C184: =C183+Sheet2!B$12 -> 9.05 | D184: 4.74 | E184: 0.5 | F184: 29.63986898 | J184: =J183+Sheet2!I$12 -> 7.541666667 | K184: 13.17 | L184: 0.5 | M184: -2.433979891
C185: =C184+Sheet2!B$12 -> 9.1 | D185: 6.18 | E185: 0.5 | F185: 28.03986898 | J185: =J184+Sheet2!I$12 -> 7.583333333 | K185: 13.08 | L185: 0.5 | M185: -2.842313224
C186: =C185+Sheet2!B$12 -> 9.15 | D186: 7.54 | E186: 0.5 | F186: 26.43986898 | J186: =J185+Sheet2!I$12 -> 7.625 | K186: 12.97 | L186: 0.5 | M186: -3.250646558
C187: =C186+Sheet2!B$12 -> 9.2 | D187: 8.83 | E187: 0.5 | F187: 24.83986898 | J187: =J186+Sheet2!I$12 -> 7.666666667 | K187: 12.84 | L187: 0.5 | M187: -3.658979891
C188: =C187+Sheet2!B$12 -> 9.25 | D188: 10.03 | E188: 0.5 | F188: 23.23986898 | J188: =J187+Sheet2!I$12 -> 7.708333333 | K188: 12.70 | L188: 0.5 | M188: -4.067313224
C189: =C188+Sheet2!B$12 -> 9.3 | D189: 11.15 | E189: 0.5 | F189: 21.63986898 | J189: =J188+Sheet2!I$12 -> 7.75 | K189: 12.54 | L189: 0.5 | M189: -4.475646558
C190: =C189+Sheet2!B$12 -> 9.35 | D190: 12.19 | E190: 0.5 | F190: 20.03986898 | J190: =J189+Sheet2!I$12 -> 7.791666667 | K190: 12.36 | L190: 0.5 | M190: -4.883979891
C191: =C190+Sheet2!B$12 -> 9.4 | D191: 13.15 | E191: 0.5 | F191: 18.43986898 | J191: =J190+Sheet2!I$12 -> 7.833333333 | K191: 12.17 | L191: 0.5 | M191: -5.292313224
C192: =C191+Sheet2!B$12 -> 9.45 | D192: 14.04 | E192: 0.5 | F192: 16.83986898 | J192: =J191+Sheet2!I$12 -> 7.875 | K192: 11.96 | L192: 0.5 | M192: -5.700646558
C193: =C192+Sheet2!B$12 -> 9.5 | D193: 14.84 | E193: 0.5 | F193: 15.23986898 | J193: =J192+Sheet2!I$12 -> 7.916666667 | K193: 11.73 | L193: 0.5 | M193: -6.108979891
C194: =C193+Sheet2!B$12 -> 9.55 | D194: 15.56 | E194: 0.5 | F194: 13.63986898 | J194: =J193+Sheet2!I$12 -> 7.958333333 | K194: 11.48 | L194: 0.5 | M194: -6.517313224
C195: =C194+Sheet2!B$12 -> 9.6 | D195: 16.20 | E195: 0.5 | F195: 12.03986898 | J195: =J194+Sheet2!I$12 -> 8 | K195: 11.22 | L195: 0.5 | M195: -6.925646558
C196: =C195+Sheet2!B$12 -> 9.65 | D196: =IF(C196<=R$2,h0-16*C196^2,IF(AND(C196>R$2,C196<=R$3),T$2*(C196-R$2)-16*(C196-R$2)^2,IF(AND(C196>R$3,C196<=R$4),T$3*(C196-R$3)-16*(C196-R$3)^2,IF(AND(C196>R$4,C196<=R$5),T$4*(C196-R$4)-16*(C196-R$4)^2,IF(AND(C196>R$5,C196<=R$6),T$5*(C196-R$5)-16*(C196-R$5)^2,IF(AND(C196>R$6,C196<=R$7),T$6*(C196-R$6)-16*(C196-R$6)^2,IF(AND(C196>R$7,C196<=R$8),T$7*(C196-R$7)-16*(C196-R$7)^2,0))))))) -> 16.76 | E196: 0.5 | F196: =IF(C196<=R$2,-32*C196,IF(AND(C196>R$2,C196<=R$3),T$2-32*(C196-R$2),IF(AND(C196>R$3,C196<=R$4),T$3-32*(C196-R$3),IF(AND(C196>R$4,C196<=R$5),T$4-32*(C196-R$4),IF(AND(C196>R$5,C196<=R$6),T$5-32*(C196-R$5),IF(AND(C196>R$6,C196<=R$7),T$6-32*(C196-R$6),IF(AND(C196>R$7,C196<=R$8),T$7-32*(C196-R$7),0))))))) -> 10.43986898 | J196: =J195+Sheet2!I$12 -> 8.041666667 | K196: =IF(J196<=Z$2,H00-4.8*J196^2,IF(AND(J196>Z$2,J196<=Z$3),AB$2*(J196-Z$2)-4.8*(J196-Z$2)^2,IF(AND(J196>Z$3,J196<=Z$4),AB$3*(J196-Z$3)-4.8*(J196-Z$3)^2,IF(AND(J196>Z$4,J196<=Z$5),AB$4*(J196-Z$4)-4.8*(J196-Z$4)^2,IF(AND(J196>Z$5,J196<=Z$6),AB$5*(J196-Z$5)-4.8*(J196-Z$5)^2,IF(AND(J196>Z$6,J196<=Z$7),AB$6*(J196-Z$6)-4.8*(J196-Z$6)^2,IF(AND(J196>Z$7,J196<=Z$8),AB$7*(J196-Z$7)-4.8*(J196-Z$7)^2,0))))))) -> 10.95 | L196: 0.5 | M196: =IF(J196<=Z$2,-gg*J196,IF(AND(J196>Z$2,J196<=Z$3),AB$2-gg*(J196-Z$2),IF(AND(J196>Z$3,J196<=Z$4),AB$3-gg*(J196-Z$3),IF(AND(J196>Z$4,J196<=Z$5),AB$4-gg*(J196-Z$4),IF(AND(J196>Z$5,J196<=Z$6),AB$5-gg*(J196-Z$5),IF(AND(J196>Z$6,J196<=Z$7),AB$6-gg*(J196-Z$6),IF(AND(J196>Z$7,J196<=Z$8),AB$7-gg*(J196-Z$7),0))))))) -> -7.333979891
C197: =C196+Sheet2!B$12 -> 9.7 | D197: 17.25 | E197: 0.5 | F197: 8.839868982 | J197: =J196+Sheet2!I$12 -> 8.083333333 | K197: 10.65 | L197: 0.5 | M197: -7.742313224
C198: =C197+Sheet2!B$12 -> 9.75 | D198: 17.65 | E198: 0.5 | F198: 7.239868982 | J198: =J197+Sheet2!I$12 -> 8.125 | K198: 10.34 | L198: 0.5 | M198: -8.150646558
C199: =C198+Sheet2!B$12 -> 9.8 | D199: 17.97 | E199: 0.5 | F199: 5.639868982 | J199: =J198+Sheet2!I$12 -> 8.166666667 | K199: 10.01 | L199: 0.5 | M199: -8.558979891
C200: =C199+Sheet2!B$12 -> 9.85 | D200: 18.21 | E200: 0.5 | F200: 4.039868982 | J200: =J199+Sheet2!I$12 -> 8.208333333 | K200: 9.67 | L200: 0.5 | M200: -8.967313224
... 403 more rows
